Workbook

Sheet NSU
B1: Emmi Hannuniemi | E1: 13.11.1999 Tyrnävä
B2: SUPERPESIS | E2: Runkosarja | I2: Kärkilyönnit (KL), pesänvälit | P2: Ylempi loppusarja | U2: Alempi loppusarja | AB2: Arvo-ottelut ja mitalit
B3: Vuosi | C3: Sija | D3: Seura | E3: OTT | F3: KUN | G3: LÖI | H3: TOI | I3: KL | J3: 0 > 1 | K3: 1 > 2 | L3: 2 > 3 | M3: 3 > k | N3: KL-% | P3: OTT | Q3: KUN | R3: LÖI | S3: TOI | T3: KL | U3: OTT | V3: KUN | W3: LÖI | X3: TOI | Y3: KL | Z3: IL | AA3: LL | AB3: Halli | AC3: K | AD3: H | AE3: P
B4: 2015 | C4: 5. | D4: TyTe | F4: suomensarja
B5: 2016 | C5: 1. | D5: TyTe | F5: suomensarja
B6: 2017 | C6: 7. | D6: TyTe | F6: ykköspesis
B7: 2018 | C7: 7. | D7: TyTe | F7: ykköspesis
B8: 2019 | C8: 5. | D8: TyTe | F8: ykköspesis
B9: 2020 | C9: 11. | D9: SiiPe | E9: 19 | F9: 1 | G9: 0 | H9: 9 | I9: 48 | J9: 21 | K9: 18 | L9: 8 | M9: 1 | N9: 46.6 % | O9: 103
B10: 2021 | C10: 13. | D10: SiiPe | E10: 23 | F10: 1 | G10: 5 | H10: 4 | I10: 52 | J10: 19 | K10: 17 | L10: 10 | M10: 6 | N10: 43.0 % | O10: 121 | U10: 8 | V10: 0 | W10: 0 | X10: 0 | Y10: 1
B11: 2022 | C11: 8. | D11: Tahko | E11: 23 | F11: 0 | G11: 1 | H11: 3 | I11: 13 | J11: 6 | K11: 4 | L11: 2 | M11: 1 | N11: 31.7 % | O11: 41 | P11: 3 | Q11: 0 | R11: 0 | S11: 0 | T11: 3
B12: 2023 | C12: 11. | D12: Roihu | E12: 18 | F12: 0 | G12: 0 | H12: 1 | I12: 8 | J12: 5 | K12: 0 | L12: 3 | M12: 0 | N12: 38.1 % | O12: 21 | U12: 8 | V12: 0 | W12: 4 | X12: 3 | Y12: 21
B13: 2024 | C13: 9. | D13: Roihu | E13: 24 | F13: 0 | G13: 5 | H13: 0 | I13: 14 | J13: 3 | K13: 4 | L13: 2 | M13: 5 | N13: 41.2 % | O13: 34 | P13: 2 | Q13: 0 | R13: 0 | S13: 0 | T13: 2
B14: Yhteensä | E14: =SUM(E4:E13) -> 107 | F14: 2 | G14: 11 | H14: 17 | I14: 135 | J14: 54 | K14: 43 | L14: 25 | M14: 13 | N14: =PRODUCT(I14/O14) -> 42.2 % | O14: =SUM(O6:O13) -> 320 | P14: =SUM(P4:P13) -> 5 | Q14: 0 | R14: 0 | S14: 0 | T14: 5 | U14: 16 | V14: 0 | W14: 4 | X14: 3 | Y14: 22 | Z14: 0 | AA14: 0 | AB14: 0 | AC14: 0 | AD14: 0 | AE14: 0
B15: Pesispörssi | D15: =SUM(F14:H14)+((I14-F14-G14)/3)+(E14/3)+(Z14*25)+(AA14*25)+(AB14*10)+(AC14*25)+(AD14*20)+(AE14*15) -> 106.3
B17: URA SUPERISSA | E17: OTT | F17: KUN | G17: LÖI | H17: TOI | I17: KL | K17: ka/L | L17: ka/T | M17: ka/KL | N17: KL - % | P17: ENSIMMÄISET
B18: Runkosarja | E18: =PRODUCT(E14) -> 107 | F18: =PRODUCT(F14) -> 2 | G18: =PRODUCT(G14) -> 11 | H18: =PRODUCT(H14) -> 17 | I18: =PRODUCT(I14) -> 135 | K18: =PRODUCT((F18+G18)/E18) -> 0.12 | L18: =PRODUCT(H18/E18) -> 0.16 | M18: =PRODUCT(I18/E18) -> 1.26 | N18: =PRODUCT(N14) -> 42.2 % | O18: =PRODUCT(O14) -> 320 | P18: Ottelu | R18: 14.06. 2020 JoMa - SiiPe 1-2 (4-2, 2-3, 1-4) | AA18: 1. ottelu | AC18: 20 v 7 kk 1 pv
B19: Ylempi loppusarja | E19: =PRODUCT(P14) -> 5 | F19: =PRODUCT(Q14) -> 0 | G19: 0 | H19: 0 | I19: 5 | K19: =PRODUCT((F19+G19)/E19) -> 0.00 | L19: =PRODUCT(H19/E19) -> 0.00 | M19: =PRODUCT(I19/E19) -> 1.00 | N19: =PRODUCT(I19/O19) -> 45.5 % | O19: 11 | P19: Lyöty | R19: 15.07. 2020 SiiPe - JoMa 0-2 (2-4, 1-5) | AA19: 9. ottelu | AC19: 20 v 8 kk 2 pv
B20: Alempi loppusarja | E20: =PRODUCT(U14) -> 16 | F20: =PRODUCT(V14) -> 0 | G20: 4 | H20: 3 | I20: 22 | K20: =PRODUCT((F20+G20)/E20) -> 0.25 | L20: =PRODUCT(H20/E20) -> 0.19 | M20: =PRODUCT(I20/E20) -> 1.38 | N20: =PRODUCT(I20/O20) -> 40.7 % | O20: 54 | P20: Tuotu | R20: 26.06. 2020 Kirittäret - SiiPe 2-0 (4-0, 6-2) | AA20: 4. ottelu | AC20: 20 v 7 kk 13 pv
B21: KAIKKI | E21: =SUM(E18:E20) -> 128 | F21: =SUM(F18:F20) -> 2 | G21: =SUM(G18:G20) -> 15 | H21: =SUM(H18:H20) -> 20 | I21: =SUM(I18:I20) -> 162 | K21: =PRODUCT((F21+G21)/E21) -> 0.13 | L21: =PRODUCT(H21/E21) -> 0.16 | M21: =PRODUCT(I21/E21) -> 1.27 | N21: =PRODUCT(I21/O21) -> 42.1 % | O21: =SUM(O18:O20) -> 385 | P21: Kunnari | R21: 15.07. 2020 SiiPe - JoMa 0-2 (2-4, 1-5) | AA21: 9. ottelu | AC21: 20 v 8 kk 2 pv
B23: Seurat | D23: TyTe = Tyrnävän Tempaus (1922), kasvattajaseura
D24: SiiPe = Siilinjärven Pesis (1987)
D25: Tahko = Hyvinkään Tahko (1915)
D26: Roihu (1957)
